bitfinex/quotes_BTCUSD_20220303
["timestamp","ask_amount","ask_price","bid_price","bid_amount"]
[1646309195113,0.541191,43494.0,43493.0,0.25619149]
[1646309195312,0.641191,43494.0,43493.0,0.25619149]
[1646309195713,0.698721,43494.0,43493.0,0.25619149]
[1646309195914,0.94577577,43494.0,43493.0,0.25619149]
[1646309196915,0.94977577,43494.0,43493.0,0.25619149]
[1646309198134,0.94577577,43494.0,43493.0,0.25619149]
[1646309199035,0.558721,43494.0,43493.0,0.25619149]
[1646309200735,0.84245348,43494.0,43493.0,0.25619149]
[1646309200934,0.558721,43494.0,43493.0,0.25619149]
[1646309202510,0.501191,43494.0,43493.0,0.25619149]
[1646309202910,0.1461,43494.0,43493.0,0.25619149]
[1646309203110,0.1,43494.0,43493.0,0.41848601]
[1646309203310,0.057522,43498.0,43493.0,0.41848601]
[1646309203311,0.355091,43497.0,43493.0,0.41848601]
[1646309203511,0.355091,43497.0,43493.0,0.25619149]
[1646309203713,0.355091,43497.0,43496.0,0.17919596]
[1646309203913,0.7453221,43497.0,43496.0,0.17919596]
[1646309204914,0.7453221,43497.0,43493.0,0.25619149]
[1646309204915,1.05903024,43497.0,43493.0,0.25619149]
[1646309205115,0.96513024,43497.0,43493.0,0.25619149]
[1646309205556,0.15,43496.0,43493.0,0.25619149]
[1646309205754,0.355091,43495.0,43493.0,0.25619149]
[1646309205955,0.355091,43495.0,43493.0,0.42056802]
[1646309206253,0.455091,43494.0,43493.0,0.41852977]
[1646309209199,0.4541849,43494.0,43493.0,0.41852977]
[1646309209700,0.4541849,43494.0,43493.0,0.25415324]
[1646309210203,0.5117139,43494.0,43493.0,0.25415324]
[1646309211101,0.57325461,43494.0,43493.0,0.25415324]
[1646309212301,0.56925461,43494.0,43493.0,0.25415324]
[1646309212603,0.56925395,43494.0,43493.0,0.25415324]
[1646309213056,0.57325395,43494.0,43493.0,0.25415324]
[1646309214256,0.51172495,43494.0,43493.0,0.25415324]
[1646309216691,0.51172429,43494.0,43493.0,0.25415324]
[1646309217096,0.51572429,43494.0,43493.0,0.25415324]
[1646309218198,0.88196043,43494.0,43493.0,0.25415324]
[1646309218400,0.87796043,43494.0,43493.0,0.25415324]
[1646309218900,0.88196043,43494.0,43493.0,0.25415324]
[1646309220446,1.13857043,43494.0,43493.0,0.22927119]
[1646309220656,0.6,43493.0,43488.0,0.00038811]
[1646309220849,0.47018136,43489.0,43488.0,0.00038811]
[1646309221053,0.82445176,43489.0,43488.0,0.00038811]
[1646309221346,0.9244511,43489.0,43488.0,0.00038811]
[1646309223550,0.95956382,43489.0,43488.0,0.00038811]
[1646309223751,0.355091,43487.0,43481.0,0.0011]
[1646309223949,0.15,43482.0,43481.0,0.0011]
[1646309224216,0.8593614,43482.0,43481.0,0.0011]
[1646309224420,0.9993614,43482.0,43481.0,0.0011]
[1646309224617,1.06066219,43482.0,43481.0,0.0011]
[1646309225217,0.470194,43481.0,43477.0,0.0011]
[1646309225418,0.60640346,43478.0,43477.0,0.0011]
[1646309225617,1.02105386,43478.0,43477.0,0.0011]
[1646309225916,1.12105386,43478.0,43477.0,0.0011]
[1646309227120,1.12505386,43478.0,43477.0,0.0011]
[1646309228248,1.15639282,43478.0,43477.0,0.0011]
[1646309228653,1.19508036,43478.0,43477.0,0.0011]
[1646309228851,1.19508036,43478.0,43473.0,0.0033]
[1646309228852,0.40976255,43477.0,43473.0,0.0033]
[1646309229053,0.60641512,43474.0,43473.0,0.0033]
[1646309229251,0.60641512,43474.0,43467.0,0.0022]
[1646309229252,1.355091,43473.0,43467.0,0.0022]
[1646309229551,0.505091,43468.0,43467.0,0.0022]
[1646309229755,1.0941014,43468.0,43467.0,0.0022]
[1646309229952,1.0941014,43468.0,43467.0,0.0017461]
[1646309229953,1.1941014,43468.0,43467.0,0.0017461]
[1646309230156,0.355091,43467.0,43465.0,0.00191035]
[1646309230352,0.8493614,43466.0,43465.0,0.00191035]
[1646309230754,0.355091,43465.0,43461.0,0.0005]
[1646309230953,0.355091,43465.0,43458.0,0.0011]
[1646309230954,0.40760136,43462.0,43460.0,0.0011]
[1646309231161,0.1461,43465.0,43460.0,0.0011]
[1646309231162,0.45915222,43461.0,43460.0,0.0011]
[1646309231355,1.04786186,43461.0,43460.0,0.0011]
[1646309231556,0.35512,43460.0,43456.0,0.0022]
[1646309231809,0.35512,43458.0,43456.0,0.0022]
[1646309232016,0.70981996,43457.0,43456.0,0.0022]
[1646309232408,0.80981996,43457.0,43456.0,0.0022]
[1646309233111,0.80981996,43457.0,43446.0,0.0011]
[1646309233112,0.35512,43454.0,43446.0,0.0011]
[1646309233311,0.77472689,43449.0,43448.0,0.00082915]
[1646309233508,0.77472689,43449.0,43446.0,0.0011]
[1646309233509,0.35512,43446.0,43442.0,2.915e-05]
[1646309233711,1.04144785,43449.0,43442.0,2.915e-05]
[1646309233712,0.35512,43444.0,43442.0,2.915e-05]
[1646309233911,0.48870964,43443.0,43442.0,2.915e-05]
[1646309234110,0.40122,43443.0,43442.0,2.915e-05]
[1646309234309,0.50122,43443.0,43442.0,2.915e-05]
[1646309234508,0.1461,43443.0,43442.0,2.915e-05]
[1646309234710,0.50122,43443.0,43442.0,2.915e-05]
[1646309234914,0.50122,43443.0,43437.0,0.0033]
[1646309234915,0.8,43439.0,43437.0,0.0033]
[1646309235115,0.8,43439.0,43432.0,0.0022]
[1646309235116,1.20512,43435.0,43432.0,0.0011]
[1646309235310,0.35512,43433.0,43432.0,0.0011]
[1646309235545,0.35512,43433.0,43427.0,0.0011]
[1646309235546,0.9,43430.0,43427.0,0.0011]
[1646309235747,0.56207589,43428.0,43427.0,0.0011]
[1646309235946,0.56207589,43428.0,43424.0,0.00117641]
[1646309235947,0.35512,43427.0,43424.0,0.00117641]
[1646309236146,0.08748964,43425.0,43424.0,0.00117641]
[1646309236351,0.48870964,43425.0,43424.0,0.00117641]
[1646309236746,0.58870964,43425.0,43424.0,0.00117641]
[1646309237153,0.58870964,43425.0,43421.0,0.00322359]
[1646309237350,0.35512,43423.0,43414.0,0.19191323]
[1646309237549,0.27392234,43422.0,43416.0,0.23671436]
[1646309237748,0.35512,43421.0,43418.0,0.16885621]
[1646309238150,0.35512,43419.0,43418.0,0.0400561]
[1646309238449,0.1,43419.0,43418.0,0.0400561]
[1646309238653,0.1,43419.0,43418.0,1e-08]
[1646309238855,0.45512,43419.0,43417.0,0.00020635]
[1646309239052,0.35512,43418.0,43414.0,0.25238738]
[1646309239301,0.1,43418.0,43416.0,0.00011813]
[1646309240299,0.03464235,43422.0,43416.0,0.19345969]
[1646309240499,0.412747,43421.0,43416.0,0.19345969]
[1646309240699,0.1,43420.0,43416.0,0.19345969]
[1646309240900,0.1,43420.0,43415.0,0.00011813]
[1646309240901,0.35512,43419.0,43415.0,0.00011813]
[1646309241100,0.1,43420.0,43415.0,0.00011813]
[1646309241101,0.35512,43417.0,43415.0,0.00011813]
[1646309241509,1.59414405,43415.0,43401.0,0.1229]
[1646309241702,1.59414405,43415.0,43401.0,0.0011]
[1646309241703,0.08748964,43411.0,43401.0,0.0011]
[1646309241900,0.14731598,43407.0,43396.0,0.3654]
[1646309242101,0.82222098,43406.0,43393.0,0.6954]
[1646309242309,0.1,43405.0,43393.0,0.5807]
[1646309242500,0.35512,43404.0,43393.0,0.5807]
[1646309242698,0.35512,43395.0,43393.0,0.5807]
[1646309242949,0.40568198,43403.0,43392.0,0.16132]
[1646309242950,0.33068198,43398.0,43396.0,0.19812546]
[1646309243155,0.312634,43397.0,43396.0,0.12438782]
[1646309243350,0.8049746,43397.0,43396.0,0.12438782]
[1646309243551,1.01034269,43396.0,43392.0,0.09332]
[1646309243746,0.83606562,43397.0,43390.0,0.00087937]
[1646309243747,0.58782692,43393.0,43390.0,0.00087937]
[1646309243947,0.355346,43391.0,43383.0,0.00221156]
[1646309244150,0.27849429,43386.0,43383.0,0.00221156]
[1646309244347,0.44622364,43386.0,43383.0,0.00221156]
[1646309244548,0.52644364,43386.0,43383.0,0.00221156]
[1646309245147,0.53044364,43386.0,43383.0,0.00221156]
[1646309245351,0.355346,43385.0,43381.0,0.00831156]
[1646309245646,0.21780964,43386.0,43381.0,0.19865078]
[1646309245647,0.312634,43383.0,43381.0,0.19865078]
[1646309246449,0.312634,43383.0,43382.0,0.21021296]
[1646309246910,0.312634,43383.0,43381.0,0.00831156]
[1646309247117,0.057683,43382.0,43381.0,0.00831156]
[1646309247311,0.459129,43382.0,43381.0,0.00831156]
[1646309247710,0.74997665,43382.0,43381.0,0.00831156]
[1646309247910,0.74997665,43382.0,43379.0,0.0002195]
[1646309247911,1.05565863,43382.0,43379.0,0.0002195]
[1646309248111,0.08748964,43380.0,43374.0,0.0417171]
[1646309248311,0.6,43378.0,43374.0,0.00119871]
[1646309248511,0.66441598,43379.0,43374.0,0.00119871]
[1646309248512,0.057694,43376.0,43374.0,0.00119871]
[1646309248715,0.59846767,43375.0,43374.0,0.00119871]
[1646309249111,0.358734,43375.0,43374.0,0.00119871]
[1646309249318,0.44622364,43375.0,43374.0,0.00119871]
[1646309250557,0.50391464,43375.0,43374.0,0.00119871]
[1646309250958,0.44622364,43375.0,43374.0,0.00119871]
[1646309251460,0.48027516,43375.0,43374.0,0.00119871]
[1646309252462,0.73926987,43375.0,43374.0,0.00119871]
[1646309252659,0.48027516,43375.0,43374.0,0.00119871]
[1646309252959,0.39278552,43375.0,43374.0,0.00119871]
[1646309253359,0.358734,43375.0,43374.0,0.00119871]
[1646309253560,0.416425,43375.0,43374.0,0.00119871]
[1646309253760,0.370325,43375.0,43374.0,0.00119871]
[1646309254220,0.312634,43375.0,43374.0,0.00119871]
[1646309254422,0.52527008,43375.0,43374.0,0.00119871]
[1646309254819,0.61275972,43375.0,43374.0,0.00119871]
[1646309255017,0.61575972,43375.0,43374.0,0.00119871]
[1646309255518,0.67344872,43375.0,43374.0,0.00119871]
[1646309256120,0.315634,43375.0,43374.0,0.00119871]
[1646309256317,0.312634,43375.0,43374.0,0.00119871]
[1646309257121,0.60127119,43375.0,43374.0,0.00119871]
[1646309257321,0.68876083,43375.0,43374.0,0.00119871]
[1646309257520,0.78876083,43375.0,43374.0,0.00119871]
[1646309258265,0.50312364,43375.0,43374.0,0.00119871]
[1646309258462,0.50012364,43375.0,43374.0,0.00119871]
[1646309258662,0.312634,43375.0,43374.0,0.00119871]
[1646309258865,0.1,43379.0,43374.0,0.00119871]
[1646309259065,0.003,43380.0,43374.0,0.05887171]
[1646309259265,0.003,43380.0,43375.0,0.45]
[1646309259569,0.003,43380.0,43375.0,0.93342675]
[1646309259763,0.003,43380.0,43376.0,0.26278465]
[1646309259965,0.003,43380.0,43377.0,0.02301]
[1646309260163,0.003,43380.0,43379.0,0.02301]
[1646309260368,0.2470363,43393.0,43379.0,0.51911]
[1646309260564,0.2470363,43393.0,43383.0,0.16615797]
[1646309260763,0.2470363,43393.0,43384.0,0.3]
[1646309260962,0.2470363,43393.0,43383.0,0.18916797]
[1646309261167,0.05,43398.0,43394.0,0.2893817]
[1646309261464,0.03893894,43399.0,43394.0,0.2893817]
[1646309261465,0.40012264,43395.0,43394.0,0.2893817]
[1646309262108,0.312633,43395.0,43394.0,0.2893817]
[1646309262309,0.355347,43398.0,43394.0,0.2893817]
[1646309262908,0.312633,43398.0,43394.0,0.2893817]
[1646309263110,0.312633,43398.0,43395.0,0.22569166]
[1646309263710,0.312633,43398.0,43394.0,0.3470287]
[1646309263910,0.355347,43398.0,43394.0,0.3470287]
[1646309264110,0.025,43401.0,43394.0,0.3470287]
[1646309264313,0.0007,43398.0,43394.0,0.3470287]
[1646309264512,0.0007,43398.0,43395.0,0.482094]
[1646309264714,0.0007,43398.0,43395.0,0.126747]
[1646309264913,0.0007,43398.0,43397.0,0.17924596]
[1646309265112,0.0007,43398.0,43397.0,0.44385514]
[1646309265314,0.0007,43398.0,43397.0,0.46686514]
[1646309265551,0.0007,43398.0,43397.0,0.77152138]
[1646309265750,0.0007,43398.0,43397.0,0.61686514]
[1646309266352,0.0007,43398.0,43397.0,1.47243607]
[1646309266550,0.0007,43398.0,43397.0,1.12678307]
[1646309267152,0.15,43409.0,43408.0,0.22265076]
[1646309267355,0.1,43409.0,43408.0,0.22265076]
[1646309267553,0.01203114,43417.0,43408.0,0.41875076]
[1646309267753,0.025,43420.0,43408.0,0.41875076]
[1646309267951,0.025,43420.0,43409.0,0.02301]
[1646309268151,0.025,43420.0,43410.0,0.0461]
[1646309268152,0.355347,43418.0,43410.0,0.0461]
[1646309268351,0.312633,43416.0,43411.0,0.0461]
[1646309268550,0.08748964,43412.0,43411.0,0.0461]
[1646309268752,0.355347,43418.0,43411.0,0.0461]
[1646309269052,0.082627,43420.0,43411.0,0.0461]
[1646309269295,0.003,43417.0,43411.0,0.28822553]
[1646309269696,0.003,43417.0,43411.0,0.47420726]
[1646309269898,0.003,43417.0,43411.0,0.28822553]
[1646309270497,0.025,43420.0,43411.0,0.28722553]
[1646309270498,0.30232135,43420.0,43411.0,0.28722553]
[1646309270698,0.1,43418.0,43411.0,0.28722553]
[1646309270898,0.1,43418.0,43411.0,0.5033441]
[1646309271102,0.002,43417.0,43412.0,0.05762]
[1646309271698,0.002,43417.0,43411.0,0.0461]
[1646309271898,0.355347,43416.0,43411.0,0.0461]
[1646309272500,0.1,43418.0,43411.0,0.0461]
[1646309272952,0.05,43422.0,43412.0,0.92412596]
[1646309273161,0.05,43422.0,43415.0,0.17301]
[1646309273354,0.003,43423.0,43416.0,0.0461]
[1646309273552,0.003,43423.0,43417.0,0.0461]
[1646309273753,0.003,43423.0,43418.0,0.0461]
[1646309274351,0.057623,43424.0,43418.0,0.0461]
[1646309274752,0.356347,43419.0,43418.0,0.0461]
[1646309275156,0.359347,43419.0,43418.0,0.0461]
[1646309275851,0.61301266,43419.0,43418.0,0.0461]
[1646309276451,0.61001266,43419.0,43418.0,0.0461]
[1646309276729,0.61001266,43419.0,43409.0,0.5979]
[1646309276730,0.312633,43418.0,43411.0,0.0461]
[1646309276920,0.312633,43418.0,43407.0,0.11525]
[1646309277122,0.337633,43418.0,43407.0,0.11525]
[1646309277317,0.24878353,43412.0,43407.0,0.11525]
[1646309277721,0.025,43418.0,43407.0,0.11525]
[1646309277919,0.025,43418.0,43408.0,0.16419555]
[1646309278722,0.025,43418.0,43407.0,0.11525]
[1646309278921,0.28465338,43412.0,43407.0,0.11525]
[1646309279520,0.025,43418.0,43407.0,0.11525]
[1646309279722,0.025,43418.0,43408.0,0.16446932]
[1646309279723,0.355347,43417.0,43408.0,0.16446932]
[1646309280023,0.025,43418.0,43408.0,0.16446932]
[1646309280472,0.025,43418.0,43408.0,0.057626]
[1646309280671,0.24733132,43413.0,43408.0,0.057626]
[1646309280873,0.355347,43417.0,43408.0,0.057626]
[1646309281072,0.355347,43416.0,43407.0,0.11525]
[1646309281274,0.057633,43416.0,43407.0,0.11525]
[1646309281475,0.057633,43416.0,43407.0,0.29135986]
[1646309281670,0.057633,43416.0,43407.0,0.11525]
[1646309282072,0.21480928,43412.0,43406.0,0.20783706]
[1646309282272,0.057633,43416.0,43404.0,0.230513]
[1646309282976,0.057633,43416.0,43406.0,0.17003219]
[1646309283173,0.057633,43416.0,43408.0,0.057628]
[1646309283374,0.26729997,43414.0,43408.0,0.33723819]
[1646309283572,0.057633,43416.0,43408.0,0.33723819]
[1646309283772,0.05897045,43418.0,43408.0,0.33723819]
[1646309283972,0.355347,43417.0,43408.0,0.39486419]
[1646309284198,0.355347,43417.0,43408.0,0.057628]
[1646309284498,0.3,43416.0,43408.0,0.057629]
[1646309284699,0.355347,43417.0,43408.0,0.057629]
[1646309285301,0.28662591,43412.0,43408.0,0.058629]
[1646309285506,0.057632,43416.0,43408.0,0.001]
[1646309286603,0.2450025,43414.0,43408.0,0.28658072]
[1646309286802,0.2450025,43414.0,43403.0,0.16244773]
[1646309287603,0.2450025,43414.0,43403.0,0.35453017]
[1646309287805,0.057637,43411.0,43403.0,0.16244773]
[1646309288052,2.02557003,43408.0,43404.0,0.23338779]
[1646309288251,2.02557003,43408.0,43406.0,0.355347]
[1646309288455,2.02557003,43408.0,43405.0,0.355347]
[1646309288651,2.02557003,43408.0,43404.0,0.23338779]
[1646309288852,2.02557003,43408.0,43403.0,0.16244773]
[1646309289053,2.02557003,43408.0,43404.0,0.355347]
[1646309289252,0.2450025,43414.0,43403.0,0.16244773]
[1646309290351,0.5450025,43414.0,43403.0,0.16244773]
[1646309290554,0.5450025,43414.0,43399.0,0.378357]
[1646309290754,0.5450025,43414.0,43399.0,0.02301]
[1646309290952,0.5450025,43414.0,43398.0,0.01289999]
[1646309290953,0.2751222,43406.0,43402.0,0.355347]
[1646309291154,0.3,43406.0,43402.0,0.355347]
[1646309291356,0.3,43406.0,43398.0,0.01289999]
[1646309291357,0.355347,43405.0,43398.0,0.01289999]
[1646309291834,0.355347,43405.0,43398.0,0.00139999]
[1646309291835,0.401447,43405.0,43398.0,0.00139999]
[1646309292128,0.08748964,43401.0,43398.0,0.00139999]
[1646309292328,0.08748964,43399.0,43398.0,0.00139999]
[1646309292527,0.40012264,43399.0,43398.0,0.00139999]
[1646309293329,0.70012264,43399.0,43398.0,0.00139999]
[1646309293628,1.09622264,43399.0,43398.0,0.00139999]
[1646309293827,0.355347,43397.0,43394.0,0.2893817]
[1646309294030,0.40012264,43395.0,43394.0,0.2893817]
[1646309294227,0.54622264,43395.0,43394.0,0.2893817]
[1646309295555,0.60388564,43395.0,43394.0,0.2893817]
[1646309296655,0.54622264,43395.0,43394.0,0.2893817]
[1646309297757,0.50012264,43395.0,43394.0,0.2893817]
[1646309299211,0.80180376,43395.0,43394.0,0.2893817]
[1646309299711,0.85946476,43395.0,43394.0,0.2893817]
[1646309300418,0.355347,43393.0,43380.0,0.1837]
[1646309300616,0.25,43385.0,43381.0,0.00080911]
[1646309300814,0.59367541,43382.0,43381.0,0.00080911]
[1646309301215,0.69367541,43382.0,43381.0,0.00080911]
[1646309301412,0.355347,43381.0,43375.0,0.1562402]
[1646309301614,0.455347,43381.0,43375.0,0.1562402]
[1646309301915,0.455347,43381.0,43375.0,0.02895199]
[1646309302955,0.312633,43380.0,43375.0,0.02915545]
[1646309303257,0.00020343,43382.0,43375.0,0.02915545]
[1646309303456,0.355347,43381.0,43375.0,0.02915545]
[1646309303662,0.00020343,43382.0,43376.0,0.057665]
[1646309303859,0.00020343,43382.0,43377.0,0.057665]
[1646309304057,0.0461,43384.0,43377.0,0.057665]
[1646309304258,0.0461,43384.0,43382.0,0.21381013]
[1646309304458,0.025,43386.0,43382.0,0.21381013]
[1646309304657,0.1,43389.0,43382.0,0.21381013]
[1646309305356,0.1,43389.0,43382.0,0.21681013]
[1646309305559,0.00020342,43388.0,43382.0,0.21681013]
[1646309305959,0.355347,43387.0,43382.0,0.003]
[1646309306265,0.312633,43385.0,43382.0,0.003]
[1646309306459,0.0461,43384.0,43373.0,0.0022]
[1646309306716,0.0461,43384.0,43375.0,0.00010003]
[1646309306717,0.28087417,43377.0,43375.0,0.00010003]
[1646309306918,0.44892126,43384.0,43375.0,0.00010003]
[1646309306919,0.370319,43376.0,43375.0,0.00010003]
[1646309307719,0.370319,43376.0,43373.0,0.17795455]
[1646309307919,0.370319,43376.0,43373.0,0.17815683]
[1646309308121,0.370319,43376.0,43373.0,0.33908237]
[1646309308620,0.312633,43376.0,43373.0,0.33908237]
[1646309308821,0.312633,43376.0,43373.0,0.33888009]
[1646309309220,0.006,43381.0,43374.0,0.22980016]
[1646309310221,0.006,43381.0,43380.0,0.16518948]
[1646309310455,0.355347,43381.0,43380.0,0.16518948]
[1646309310658,0.00020231,43382.0,43380.0,0.16518948]
[1646309311252,0.060668,43387.0,43381.0,0.20512223]
[1646309311454,0.060668,43387.0,43380.0,0.16518948]
[1646309311652,0.00020231,43383.0,43380.0,0.16518948]
[1646309312251,0.00020231,43383.0,43380.0,0.22285148]
[1646309312455,0.003,43387.0,43380.0,0.22285148]
[1646309312654,0.00020231,43384.0,43380.0,0.22285148]
[1646309313050,0.00020231,43384.0,43381.0,0.21178715]
[1646309313653,0.057662,43391.0,43380.0,0.22285148]
[1646309313852,0.0002023,43385.0,43380.0,0.16518948]
[1646309314056,0.057674,43384.0,43380.0,0.16518948]
[1646309314502,0.057674,43384.0,43375.0,0.00020235]
[1646309314706,0.057674,43384.0,43380.0,0.17076121]
[1646309314904,0.30282126,43391.0,43380.0,0.17076121]
[1646309315105,0.00020231,43382.0,43380.0,0.17076121]
[1646309315906,0.00020231,43382.0,43381.0,0.20001633]
[1646309316106,0.44315126,43393.0,43384.0,0.057659]
[1646309316307,0.455347,43392.0,43384.0,0.057659]
[1646309316712,0.1,43392.0,43384.0,0.057659]
[1646309317407,0.1,43392.0,43387.0,0.16086455]
[1646309317408,0.355347,43391.0,43387.0,0.16086455]
[1646309317606,0.00020229,43390.0,43387.0,0.16086455]
[1646309318251,0.00020229,43390.0,43387.0,0.15858455]
[1646309318458,0.355347,43391.0,43387.0,0.15858455]
[1646309318852,0.00020229,43391.0,43381.0,0.057661]
[1646309319255,0.27854641,43389.0,43378.0,0.1883]
[1646309319653,0.057664,43390.0,43378.0,0.057665]
[1646309319854,0.0002023,43386.0,43382.0,0.21345692]
[1646309320854,0.025,43393.0,43382.0,0.21345692]
[1646309321256,0.0002023,43386.0,43382.0,0.21345692]
[1646309321457,0.355347,43392.0,43387.0,0.0004046]
[1646309322314,0.355347,43392.0,43389.0,0.20391414]
[1646309322520,0.355347,43392.0,43387.0,0.0004046]
[1646309323216,0.360347,43392.0,43387.0,0.0004046]
[1646309323616,0.00510223,43392.0,43380.0,0.30282126]
[1646309323815,0.00510223,43392.0,43382.0,0.16298414]
[1646309324015,0.24666764,43389.0,43384.0,0.21369915]
[1646309324215,0.355347,43391.0,43384.0,0.21369915]
[1646309324421,0.057667,43389.0,43384.0,0.21369915]
[1646309324615,0.057667,43389.0,43381.0,0.15671487]
[1646309324819,0.05788427,43389.0,43381.0,0.15671487]
[1646309325115,0.05788427,43389.0,43382.0,0.21023469]
[1646309325569,0.05788427,43389.0,43384.0,0.2834017]
[1646309325771,0.355347,43388.0,43384.0,0.2834017]
[1646309325970,0.00010208,43388.0,43381.0,0.15671487]
[1646309327175,0.27128781,43388.0,43383.0,0.23166071]
[1646309327375,0.00010208,43388.0,43383.0,0.23166071]
[1646309327575,0.00010208,43388.0,43381.0,0.15671487]
[1646309327978,0.057667,43389.0,43381.0,0.15671487]
[1646309328277,0.00010208,43388.0,43381.0,0.15671487]
[1646309328678,0.22628204,43388.0,43381.0,0.36342176]
[1646309328878,0.22628204,43388.0,43381.0,0.15671487]
[1646309329078,0.00010208,43388.0,43381.0,0.15671487]
[1646309329317,0.057667,43389.0,43381.0,0.15671487]
[1646309329521,0.00021707,43388.0,43381.0,0.15671487]
[1646309330019,0.00021707,43388.0,43384.0,0.21985859]
[1646309330217,0.00021707,43388.0,43386.0,0.1548119]
[1646309330416,0.057667,43389.0,43386.0,0.1548119]
[1646309330618,0.08266,43393.0,43384.0,0.21985859]
[1646309330816,0.00021708,43388.0,43381.0,0.45953613]
[1646309331019,0.00021708,43388.0,43381.0,0.15671487]
[1646309331221,0.00021708,43388.0,43381.0,0.48254613]
[1646309331419,0.00021708,43388.0,43381.0,0.45953613]
[1646309331619,0.025,43393.0,43382.0,0.28750198]
[1646309331818,0.025,43393.0,43383.0,0.24048856]
[1646309332022,0.00021707,43388.0,43384.0,0.30282126]
[1646309332319,0.00021707,43388.0,43385.0,0.19768487]
[1646309332724,0.00021707,43388.0,43386.0,0.057646]
[1646309332974,0.05,43401.0,43387.0,0.30282126]
[1646309333172,0.00021708,43389.0,43387.0,0.30282126]
[1646309334073,0.05,43401.0,43387.0,0.41811226]
[1646309334273,0.05,43401.0,43394.0,0.17083379]
[1646309334676,0.355347,43404.0,43395.0,0.16827995]
[1646309334874,0.355347,43404.0,43394.0,0.17083379]
[1646309335274,0.26025717,43401.0,43396.0,0.22412112]
[1646309335478,0.26025717,43401.0,43394.0,0.17083379]
[1646309335479,0.312633,43400.0,43394.0,0.17083379]
[1646309336077,0.00020839,43401.0,43394.0,0.17083379]
[1646309336278,0.05785839,43401.0,43394.0,0.17083379]
[1646309336478,0.1,43403.0,43394.0,0.17083379]
[1646309336731,0.006,43404.0,43394.0,0.17083379]
[1646309336732,0.00020839,43400.0,43394.0,0.17083379]
[1646309336933,0.00020839,43400.0,43395.0,0.30282126]
[1646309337133,0.00020839,43400.0,43396.0,0.15539135]
[1646309337533,0.00020839,43400.0,43395.0,0.30282126]
[1646309337735,0.1,43404.0,43394.0,0.16583379]
[1646309337936,0.00020165,43400.0,43394.0,0.16583379]
[1646309338134,0.00020165,43400.0,43391.0,0.30282126]
[1646309338135,0.22607258,43400.0,43391.0,0.30282126]
[1646309338333,0.22607258,43400.0,43394.0,0.2590194]
[1646309338535,0.00020165,43400.0,43393.0,0.1784268]
[1646309338733,0.00020165,43400.0,43391.0,0.30282126]
[1646309338934,1.90029482,43403.0,43388.0,0.61782126]
[1646309339133,0.00020165,43399.0,43389.0,0.01152]
[1646309339336,0.05785565,43399.0,43389.0,0.01152]
[1646309339536,0.05785565,43399.0,43395.0,0.24468226]
[1646309340134,0.15990212,43405.0,43396.0,0.21865572]
[1646309340336,0.00010226,43399.0,43397.0,0.23930351]
[1646309340767,0.00010226,43399.0,43397.0,0.18166151]
[1646309340966,0.00010226,43399.0,43396.0,0.21865572]
[1646309341169,0.00010226,43399.0,43395.0,0.30282126]
[1646309341366,0.002,43404.0,43395.0,0.30282126]
[1646309341567,0.00020228,43400.0,43395.0,0.30282126]
[1646309341966,0.00020228,43400.0,43396.0,0.23862863]
[1646309342170,0.35554928,43400.0,43392.0,0.230567]
[1646309342371,0.35554928,43400.0,43393.0,0.057647]
[1646309342372,0.00020228,43400.0,43393.0,0.057647]
[1646309342574,0.05990212,43405.0,43393.0,0.057647]
[1646309342768,0.00020229,43398.0,43393.0,0.057647]
[1646309343168,0.00020229,43398.0,43395.0,0.19704331]
[1646309343770,0.11754812,43405.0,43395.0,0.19704331]
[1646309343967,0.00020229,43399.0,43395.0,0.19704331]
[1646309345116,0.00020225,43399.0,43395.0,0.19704331]
[1646309345315,0.00220225,43399.0,43396.0,0.23766028]
[1646309346018,0.002,43399.0,43396.0,0.23766028]
[1646309346214,0.002,43399.0,43398.0,0.355347]
[1646309346417,0.002,43399.0,43397.0,0.057641]
[1646309346617,0.00020225,43400.0,43397.0,0.057641]
[1646309347015,0.00020225,43400.0,43397.0,0.19248595]
[1646309347215,0.00220225,43400.0,43395.0,0.19704331]
[1646309347416,0.002,43400.0,43395.0,0.25468731]
[1646309348051,0.002,43400.0,43396.0,0.355347]
[1646309348256,0.002,43400.0,43399.0,0.20247977]
[1646309348452,0.025,43405.0,43399.0,0.20247977]
[1646309348752,0.025,43405.0,43399.0,0.26011477]
[1646309348753,0.00020264,43402.0,43399.0,0.26011477]
[1646309348956,0.00020264,43402.0,43400.0,0.30282126]
[1646309349353,0.00020264,43402.0,43400.0,0.36045526]
[1646309349553,0.00020264,43402.0,43401.0,0.30282126]
[1646309349753,0.03611862,43410.0,43402.0,0.115258]
[1646309349956,0.03611862,43410.0,43407.0,0.16426746]
[1646309350260,0.355347,43408.0,43407.0,0.16426746]
[1646309350454,0.355347,43409.0,43406.0,0.057632]
[1646309350656,0.03408894,43411.0,43402.0,0.115258]
[1646309351253,0.00020263,43409.0,43402.0,0.115258]
[1646309351455,0.00020263,43409.0,43403.0,0.18716628]
[1646309352137,0.03608894,43411.0,43403.0,0.18716628]
[1646309352337,0.0002022,43408.0,43403.0,0.18716628]
[1646309352844,0.0002022,43408.0,43406.0,0.16555543]
[1646309353242,0.0002022,43408.0,43403.0,0.4497338]
[1646309353441,0.03408894,43411.0,43403.0,0.4497338]
[1646309353641,0.0002022,43409.0,43403.0,0.4497338]
[1646309353844,0.0002022,43409.0,43404.0,0.48022354]
[1646309354044,0.0002022,43409.0,43405.0,0.30282126]
[1646309354242,0.0002022,43409.0,43406.0,0.18918051]
[1646309354440,0.0002022,43409.0,43407.0,0.355347]
[1646309354647,0.001,43419.0,43409.0,0.355347]
[1646309354841,0.001,43419.0,43408.0,0.30282126]
[1646309354842,0.001,43419.0,43414.0,0.057617]
[1646309355045,0.001,43419.0,43415.0,0.30282126]
[1646309355242,0.001,43419.0,43417.0,0.24464021]
[1646309355479,0.001,43419.0,43414.0,0.057617]
[1646309355677,0.001,43419.0,43413.0,0.33312735]
[1646309355878,0.001,43419.0,43413.0,0.115234]
[1646309356379,0.001,43419.0,43415.0,0.2864773]
[1646309357179,0.0012022,43419.0,43415.0,0.2864773]
[1646309357382,0.0062022,43419.0,43415.0,0.2864773]
[1646309358282,0.006,43419.0,43409.0,0.41806326]
[1646309358483,0.0062022,43419.0,43409.0,0.41806326]
[1646309358684,0.0012022,43419.0,43409.0,0.30282126]